fUSD/lending_fUSD_20260501
["ID","MTS","AMOUNT","RATE_DAILY","PERIOD"]
[421419651,1777609722000,-250.0,0.0001197,2]
[421419652,1777609723000,-250.0,0.0001197,2]
[421419654,1777609723000,-168.0,0.0001197,2]
[421419653,1777609723000,-82.0,0.0001197,2]
[421419655,1777609724000,-250.0,0.0001197,2]
[421419844,1777609897000,-282.0,0.0001197,2]
[421419843,1777609897000,-282.0,0.0001197,2]
[421419846,1777609898000,-18.0,0.00011969,2]
[421419847,1777609898000,-264.0,0.0001197,2]
[421419845,1777609898000,-282.0,0.00011969,2]
[421419848,1777609899000,-282.0,0.0001,2]
[421419849,1777609900000,-282.0,0.0001,2]
[421419850,1777609901000,-282.0,9.999e-05,2]
[421419851,1777609901000,-18.0,9.999e-05,2]
[421419852,1777609901000,-264.0,9.999e-05,2]
[421419870,1777609902000,-500.0,0.00011999,2]
[421419868,1777609902000,-250.0,0.00011985,2]
[421419866,1777609902000,-1100.0,0.0001197,2]
[421419867,1777609902000,-900.0,0.0001197,2]
[421419865,1777609902000,-700.0,0.0001197,2]
[421419864,1777609902000,-700.0,0.0001197,2]
[421419862,1777609902000,-150.0,0.00011969,2]
[421419863,1777609902000,-154.0,0.0001197,2]
[421419859,1777609902000,-4796.4,0.0001,2]
[421419860,1777609902000,-32332.22791725,0.0001,2]
[421419858,1777609902000,-316.68622018,0.0001,2]
[421419857,1777609902000,-124.20924308,0.0001,2]
[421419854,1777609902000,-404.30213,9.999e-05,2]
[421419855,1777609902000,-249.69787,9.999e-05,2]
[421419853,1777609902000,-282.0,9.999e-05,2]
[421419861,1777609902000,-1200.0,0.00011969,2]
[421419871,1777609902000,-500.0,0.00011999,2]
[421419856,1777609902000,-300.0,9.999e-05,2]
[421419869,1777609902000,-195.40615434,0.00011999,2]
[421419873,1777609902000,-500.0,0.00011999,2]
[421419889,1777609902000,-500.0,0.00011999,2]
[421419886,1777609902000,-500.0,0.00011999,2]
[421419879,1777609902000,-500.0,0.00011999,2]
[421419888,1777609902000,-429.11649152,0.00011999,2]
[421419876,1777609902000,-500.0,0.00011999,2]
[421419885,1777609902000,-500.0,0.00011999,2]
[421419887,1777609902000,-500.0,0.00011999,2]
[421419878,1777609902000,-500.0,0.00011999,2]
[421419877,1777609902000,-500.0,0.00011999,2]
[421419880,1777609902000,-500.0,0.00011999,2]
[421419875,1777609902000,-500.0,0.00011999,2]
[421419883,1777609902000,-500.0,0.00011999,2]
[421419874,1777609902000,-500.0,0.00011999,2]
[421419881,1777609902000,-500.0,0.00011999,2]
[421419882,1777609902000,-500.0,0.00011999,2]
[421419872,1777609902000,-500.0,0.00011999,2]
[421419884,1777609902000,-500.0,0.00011999,2]
[421419903,1777609903000,-500.0,0.00011999,2]
[421419913,1777609903000,-500.0,0.00011999,2]
[421419914,1777609903000,-500.0,0.00011999,2]
[421419904,1777609903000,-500.0,0.00011999,2]
[421419910,1777609903000,-500.0,0.00011999,2]
[421419902,1777609903000,-500.0,0.00011999,2]
[421419905,1777609903000,-500.0,0.00011999,2]
[421419898,1777609903000,-500.0,0.00011999,2]
[421419908,1777609903000,-500.0,0.00011999,2]
[421419894,1777609903000,-500.0,0.00011999,2]
[421419900,1777609903000,-500.0,0.00011999,2]
[421419893,1777609903000,-500.0,0.00011999,2]
[421419891,1777609903000,-500.0,0.00011999,2]
[421419895,1777609903000,-500.0,0.00011999,2]
[421419896,1777609903000,-500.0,0.00011999,2]
[421419892,1777609903000,-500.0,0.00011999,2]
[421419890,1777609903000,-500.0,0.00011999,2]
[421419901,1777609903000,-500.0,0.00011999,2]
[421419909,1777609903000,-500.0,0.00011999,2]
[421419899,1777609903000,-500.0,0.00011999,2]
[421419897,1777609903000,-500.0,0.00011999,2]
[421419906,1777609903000,-500.0,0.00011999,2]
[421419919,1777609903000,-39186.72730949,0.00012,2]
[421419912,1777609903000,-500.0,0.00011999,2]
[421419933,1777609903000,-2590.96888089,0.00012,2]
[421419934,1777609903000,-291.91598091,0.00012,2]
[421419931,1777609903000,-418.69223597,0.00012,2]
[421419932,1777609903000,-272143.60705221,0.00012,2]
[421419929,1777609903000,-2635.62185893,0.00012,2]
[421419930,1777609903000,-1104.07462607,0.00012,2]
[421419923,1777609903000,-306.68219948,0.00012,2]
[421419924,1777609903000,-304.0,0.00012,2]
[421419926,1777609903000,-389.96475033,0.00012,2]
[421419911,1777609903000,-500.0,0.00011999,2]
[421419928,1777609903000,-896.58536626,0.0001,2]
[421419925,1777609903000,-1832.03360461,0.00012,2]
[421419922,1777609903000,-109132.52146152,0.00012,2]
[421419920,1777609903000,-3346.47176119,0.00012,2]
[421419921,1777609903000,-1463.14514266,0.00012,2]
[421419918,1777609903000,-203563.85640269,0.00012,2]
[421419915,1777609903000,-500.0,0.00011999,2]
[421419917,1777609903000,-500.0,0.00011999,2]
[421419916,1777609903000,-500.0,0.00011999,2]
[421419907,1777609903000,-500.0,0.00011999,2]
[421419927,1777609903000,-1035.37326603,0.00012,2]
[421419936,1777609904000,-3682.04121702,0.00012,2]
[421419937,1777609904000,-653.74439782,0.00012,2]
[421419940,1777609904000,-48704.71650335,0.00012,2]
[421419935,1777609904000,-282.0,0.00012,2]
[421419939,1777609904000,-3637.97003752,0.00012,2]
[421419943,1777609904000,-282.0,9.04e-05,2]
[421419938,1777609904000,-509.0,0.00012,2]
[421419941,1777609904000,-2114.72,0.00012,2]
[421419942,1777609904000,-282.0,0.0001,2]
[421419945,1777609905000,-282.0,9.04e-05,2]
[421419944,1777609905000,-707.16430406,9.04e-05,2]
[421419946,1777609912000,414.175555,0.00026849,120]
[421419947,1777609955000,-10000.01,9.04e-05,2]
[421419952,1777610116000,-9700.01,9.04e-05,2]
[421419951,1777610116000,-300.0,9.039e-05,2]
[421419950,1777610116000,-10000.01,9.04e-05,2]
[421419949,1777610116000,-10000.01,9.04e-05,2]
[421419953,1777610117000,-8869.73890497,9.04e-05,2]
[421419954,1777610123000,-739.50437953,9.039e-05,2]
[421419955,1777610125000,-290.72450716,9.039e-05,2]
[421419956,1777610127000,-164.68063555,9.039e-05,2]
[421419957,1777610130000,1051.29454,0.00026849,120]
[421419958,1777610138000,-5.09047776,9.039e-05,2]
[421419959,1777610161000,500.0,0.000285,120]
[421419960,1777610166000,500.0,0.000285,120]
[421419961,1777610175000,277.878776,0.00026849,120]
[421419962,1777610199000,302.216271,0.00025415,120]
[421419963,1777610202000,500.0,0.000285,120]
[421419964,1777610214000,274.837207,0.0002401,120]
[421419965,1777610222000,430.312889,0.00022846,120]
[421419967,1777610594000,267.58062943,0.000285,120]
[421419968,1777610719000,-1200.0,9.999e-05,2]
[421419969,1777610853000,-250.0,0.0001,2]
[421419970,1777611001000,-250.0,0.0001,2]
[421419972,1777611003000,-250.0,0.0001,2]
[421419971,1777611003000,-250.0,0.0001,2]
[421419973,1777611004000,-250.0,9.999e-05,2]
[421419976,1777611005000,-250.0,0.0001,2]
[421419974,1777611005000,-50.0,9.999e-05,2]
[421419975,1777611005000,-200.0,0.0001,2]
[421419977,1777611006000,-250.0,0.0001,2]
[421419978,1777611007000,-250.0,0.0001,2]
[421419979,1777611007000,-250.0,0.0001,2]
[421419981,1777611008000,-1950.0,0.0001,2]
[421419980,1777611008000,-528.72359666,0.0001,2]
[421419982,1777611009000,-2478.72359666,0.0001,2]
[421419985,1777611010000,-2260.72359666,0.0001,2]
[421419984,1777611010000,-218.0,9.999e-05,2]
[421419983,1777611010000,-2478.72359666,0.0001,2]
[421419986,1777611011000,-2478.72359666,0.0001,2]
[421419987,1777611012000,-639.08679057,0.0001,2]
[421419988,1777611013000,-8944.65796,0.00010457,2]
[421419990,1777611013000,-19754.1279,0.000105,2]
[421419989,1777611013000,-2390.18204,0.00010457,2]
[421419993,1777611014000,-38234.74204,0.000106,2]
[421419995,1777611014000,-459.02,0.00010699,2]
[421419994,1777611014000,-1001.80802509,0.00010699,2]
[421419992,1777611014000,-39799.5444,0.000106,2]
[421419991,1777611014000,-34448.58796,0.000106,2]
[421419997,1777611015000,-26840.67292912,0.000107,2]
[421419996,1777611015000,-270.84112579,0.000107,2]
[421420134,1777611161000,-1000.0,0.00010499,2]
[421420135,1777611161000,-9000.01,0.000107,2]
[421420147,1777611162000,217.473143,0.00026849,120]
[421420136,1777611162000,-500.0,0.00010699,2]
[421420137,1777611162000,-500.0,0.00010699,2]
[421420138,1777611162000,491.195166,0.00026849,120]
[421420139,1777611162000,-268.95559825,0.000107,2]
[421420140,1777611162000,-816.39367816,0.000107,2]
[421420141,1777611162000,-532.85021356,0.000107,2]
[421420144,1777611162000,-11008.44714995,0.000107,2]
[421420143,1777611162000,-72046.79528601,0.000107,2]
[421420145,1777611162000,-103262.90266252,0.000107,2]
[421420146,1777611162000,-1586.0,0.000107,2]
[421420142,1777611162000,-281.60064,0.000107,2]
[421420155,1777611163000,-3093.41928878,0.000107,2]
[421420149,1777611163000,-24140.2636085,0.000107,2]
[421420148,1777611163000,-1248.40317396,0.000107,2]
[421420153,1777611163000,-1658.93496851,0.000107,2]
[421420151,1777611163000,-809.12419795,0.000107,2]
[421420159,1777611163000,-621.69315632,0.000107,2]
[421420150,1777611163000,-336.74684927,0.000107,2]
[421420158,1777611163000,-3739.69729021,0.000107,2]
[421420157,1777611163000,-1000.0,0.000107,2]
[421420152,1777611163000,-366.78459391,0.000107,2]
[421420154,1777611163000,-15194.89871342,0.000107,2]
[421420156,1777611163000,-337.05962658,0.000107,2]
[421420164,1777611164000,-938.78645993,0.000107,2]
[421420163,1777611164000,-6170.00160557,0.000107,2]
[421420162,1777611164000,-258.35391883,0.000107,2]
[421420161,1777611164000,-430.18660126,0.000107,2]
[421420160,1777611164000,-2454.16723922,0.000107,2]
[421420165,1777611164000,-1000.0,0.00010576,2]
[421420167,1777611165000,-1000.0,0.00010446,2]
[421420166,1777611165000,-1000.0,0.00010446,2]
[421420169,1777611166000,-757.0,0.00010446,2]
[421420170,1777611166000,-1000.0,0.00010446,2]
[421420168,1777611166000,-243.0,0.00010446,2]
[421420171,1777611167000,-1000.0,0.00010446,2]
[421420172,1777611168000,-1000.0,0.00010446,2]
[421420176,1777611170000,-224.59224,0.00010575,2]
[421420175,1777611170000,-250.0,0.00010559,2]
[421420174,1777611170000,-250.0,0.00010472,2]
[421420173,1777611170000,-275.40776,0.00010446,2]
[421420178,1777611316000,-75.40776,0.00010575,2]
[421420177,1777611316000,-75.40776,0.00010575,2]
[421420179,1777611317000,-75.40776,0.00010575,2]
[421420180,1777611318000,-75.40776,0.00010575,2]
[421420181,1777611319000,-73.77672,0.00010575,2]
[421420182,1777611319000,-1.63104,0.00010575,2]
[421420183,1777611320000,-75.40776,0.00010575,2]
[421420185,1777611321000,-75.40776,0.00010575,2]
[421420184,1777611321000,-75.40776,0.00010575,2]
[421420186,1777611322000,-75.40776,0.00010575,2]
[421420189,1777611323000,-75.40776,0.00010575,2]
[421420188,1777611323000,-1.63104,0.00010575,2]
[421420187,1777611323000,-73.77672,0.00010575,2]
[421420190,1777611468000,-1124.59224,0.00010575,2]
[421420191,1777611599000,-300.0,0.00010575,2]
[421420195,1777611600000,-202.0,0.00010575,2]
[421420194,1777611600000,-98.0,0.00010575,2]
[421420192,1777611600000,-150.0,0.00010575,2]
[421420193,1777611600000,-150.0,0.00010575,2]
[421420196,1777611614000,-98.0,0.00010575,2]
[421420198,1777611614000,-30.66984,0.00010576,2]
[421420197,1777611614000,-171.33016,0.00010575,2]
[421420201,1777611615000,-300.0,0.00010576,2]
[421420200,1777611615000,-300.0,0.00010576,2]
[421420199,1777611615000,-300.0,0.00010576,2]
[421420203,1777611616000,-153.96205897,0.000105,2]
[421420204,1777611616000,-146.03794103,0.00010576,2]
[421420202,1777611616000,-300.0,0.00010576,2]
[421420206,1777611618000,-98.0,0.00010576,2]
[421420205,1777611618000,-300.0,0.00010576,2]
[421420207,1777611632000,215.649,0.00030137,120]
[421420211,1777611752000,175.0,0.00030136,120]
[421420213,1777611770000,-336.8197,0.000105,2]
[421420215,1777611902000,-300.0,0.00010575,2]
[421420216,1777611902000,-300.0,0.00010575,2]
[421420219,1777611903000,527.289244,0.00025383,120]
[421420217,1777611903000,-150.0,0.00010575,2]
[421420218,1777611903000,-150.0,0.00010576,2]
[421420220,1777611904000,-300.0,0.00010576,2]
[421420222,1777611905000,-300.0,0.00010575,2]
[421420221,1777611905000,-300.0,0.00010576,2]
[421420224,1777611906000,-300.0,0.00010575,2]
[421420223,1777611906000,-300.0,0.00010575,2]
[421420225,1777611907000,-300.0,0.00010575,2]
[421420226,1777611908000,-300.0,0.00010575,2]
[421420227,1777611957000,486.805,0.0002885,120]
[421420228,1777611975000,487.3,0.00030137,120]
[421420229,1777611990000,365.48,0.00030137,120]
[421420230,1777612012000,274.11,0.00030137,120]
[421420231,1777612027000,411.16,0.00030137,120]
[421420232,1777612045000,411.16,0.00030137,120]
[421420233,1777612066000,-1749.0376069,0.00010536,2]
[421420234,1777612187000,-1200.0,0.00010574,2]
[421420237,1777612188000,-1200.0,0.00010575,2]
[421420235,1777612188000,-300.0,0.00010574,2]
[421420236,1777612188000,-900.0,0.00010575,2]
[421420238,1777612189000,-1200.0,0.00010575,2]
[421420240,1777612190000,-1200.0,0.00010575,2]
[421420239,1777612190000,-1200.0,0.00010575,2]
[421420245,1777612191000,-603.68683493,0.00010576,2]
[421420241,1777612191000,-1200.0,0.00010575,2]
[421420243,1777612191000,-19207.58084107,0.00010576,2]
[421420242,1777612191000,-16191.63088613,0.00010575,2]
[421420244,1777612191000,-33414.6408982,0.00010576,2]
[421420250,1777612191000,-500.0,0.00010599,2]
[421420248,1777612191000,-367.21,0.00010599,2]
[421420246,1777612191000,-181.70919437,0.00010576,2]
[421420249,1777612191000,-201.5590213,0.00010599,2]
[421420251,1777612191000,-500.0,0.00010599,2]
[421420247,1777612191000,-500.0,0.00010599,2]
[421420252,1777612191000,-500.0,0.00010599,2]
[421420270,1777612192000,-559.53020316,0.00010599,2]
[421420269,1777612192000,-559.53020316,0.00010599,2]
[421420268,1777612192000,-559.53020316,0.00010599,2]
[421420265,1777612192000,-559.53020316,0.00010599,2]
[421420267,1777612192000,-559.53020316,0.00010599,2]
[421420266,1777612192000,-559.53020316,0.00010599,2]
[421420264,1777612192000,-559.53020316,0.00010599,2]
[421420263,1777612192000,-559.53020316,0.00010599,2]
[421420259,1777612192000,-500.0,0.00010599,2]
[421420260,1777612192000,-500.0,0.00010599,2]
[421420258,1777612192000,-481.99304814,0.00010599,2]
[421420256,1777612192000,-500.0,0.00010599,2]
[421420257,1777612192000,-500.0,0.00010599,2]
[421420254,1777612192000,-500.0,0.00010599,2]
[421420255,1777612192000,-500.0,0.00010599,2]
[421420253,1777612192000,-500.0,0.00010599,2]
[421420271,1777612192000,-559.53020316,0.00010599,2]
[421420262,1777612192000,-559.53020316,0.00010599,2]
[421420272,1777612192000,-559.53020316,0.00010599,2]
[421420261,1777612192000,-559.53020316,0.00010599,2]
[421420273,1777612192000,-559.53020316,0.00010599,2]
[421420274,1777612192000,-559.53020316,0.00010599,2]
[421420293,1777612192000,-559.53020316,0.00010599,2]
[421420291,1777612192000,-559.53020316,0.00010599,2]
[421420289,1777612192000,-559.53020316,0.00010599,2]
[421420290,1777612192000,-559.53020316,0.00010599,2]
[421420287,1777612192000,-559.53020316,0.00010599,2]
[421420288,1777612192000,-559.53020316,0.00010599,2]
[421420285,1777612192000,-559.53020316,0.00010599,2]
[421420286,1777612192000,-559.53020316,0.00010599,2]
[421420292,1777612192000,-559.53020316,0.00010599,2]
[421420284,1777612192000,-559.53020316,0.00010599,2]
[421420283,1777612192000,-559.53020316,0.00010599,2]
[421420275,1777612192000,-559.53020316,0.00010599,2]
[421420277,1777612192000,-559.53020316,0.00010599,2]
[421420278,1777612192000,-559.53020316,0.00010599,2]
[421420276,1777612192000,-559.53020316,0.00010599,2]
[421420280,1777612192000,-559.53020316,0.00010599,2]
[421420282,1777612192000,-559.53020316,0.00010599,2]
[421420281,1777612192000,-559.53020316,0.00010599,2]
[421420279,1777612192000,-559.53020316,0.00010599,2]
[421420309,1777612193000,-607.95380011,0.00010599,2]
[421420302,1777612193000,-559.53020316,0.00010599,2]
[421420307,1777612193000,-559.53020316,0.00010599,2]
[421420306,1777612193000,-559.53020316,0.00010599,2]
[421420305,1777612193000,-559.53020316,0.00010599,2]
[421420304,1777612193000,-559.53020316,0.00010599,2]
[421420303,1777612193000,-559.53020316,0.00010599,2]
[421420296,1777612193000,-559.53020316,0.00010599,2]
[421420301,1777612193000,-559.53020316,0.00010599,2]
[421420299,1777612193000,-559.53020316,0.00010599,2]
[421420298,1777612193000,-559.53020316,0.00010599,2]
[421420297,1777612193000,-559.53020316,0.00010599,2]
[421420295,1777612193000,-559.53020316,0.00010599,2]
[421420294,1777612193000,-559.53020316,0.00010599,2]
[421420308,1777612193000,-559.53020316,0.00010599,2]
[421420300,1777612193000,-559.53020316,0.00010599,2]
[421420311,1777612193000,-553.93490112,0.00010599,2]
[421420310,1777612193000,-300.0,0.00010599,2]
[421420326,1777612193000,-553.93490112,0.00010599,2]
[421420312,1777612193000,-553.93490112,0.00010599,2]
[421420328,1777612193000,-553.93490112,0.00010599,2]
[421420327,1777612193000,-553.93490112,0.00010599,2]
[421420324,1777612193000,-553.93490112,0.00010599,2]
[421420325,1777612193000,-553.93490112,0.00010599,2]
[421420323,1777612193000,-553.93490112,0.00010599,2]
[421420322,1777612193000,-553.93490112,0.00010599,2]
[421420321,1777612193000,-553.93490112,0.00010599,2]
[421420329,1777612193000,-553.93490112,0.00010599,2]
[421420320,1777612193000,-553.93490112,0.00010599,2]
[421420318,1777612193000,-553.93490112,0.00010599,2]
[421420316,1777612193000,-553.93490112,0.00010599,2]
[421420317,1777612193000,-553.93490112,0.00010599,2]
[421420315,1777612193000,-553.93490112,0.00010599,2]
[421420314,1777612193000,-553.93490112,0.00010599,2]
[421420319,1777612193000,-553.93490112,0.00010599,2]
[421420313,1777612193000,-553.93490112,0.00010599,2]
[421420343,1777612194000,-500.0,0.00010599,2]
[421420342,1777612194000,-553.93490112,0.00010599,2]
[421420344,1777612194000,-204.01325216,0.00010599,2]
[421420345,1777612194000,-500.0,0.00010599,2]
[421420348,1777612194000,-500.0,0.00010599,2]
[421420346,1777612194000,-500.0,0.00010599,2]
[421420349,1777612194000,-500.0,0.00010599,2]
[421420350,1777612194000,-500.0,0.00010599,2]
[421420340,1777612194000,-553.93490112,0.00010599,2]
[421420347,1777612194000,-500.0,0.00010599,2]
[421420352,1777612194000,-566.2445656,0.00010599,2]
[421420332,1777612194000,-553.93490112,0.00010599,2]
[421420339,1777612194000,-553.93490112,0.00010599,2]
[421420338,1777612194000,-553.93490112,0.00010599,2]
[421420337,1777612194000,-553.93490112,0.00010599,2]
[421420336,1777612194000,-553.93490112,0.00010599,2]
[421420335,1777612194000,-553.93490112,0.00010599,2]
[421420333,1777612194000,-553.93490112,0.00010599,2]
[421420334,1777612194000,-553.93490112,0.00010599,2]
[421420331,1777612194000,-553.93490112,0.00010599,2]
[421420330,1777612194000,-553.93490112,0.00010599,2]
[421420341,1777612194000,-553.93490112,0.00010599,2]
[421420353,1777612194000,-566.2445656,0.00010599,2]
[421420366,1777612194000,-500.0,0.00010638,2]
[421420354,1777612194000,-566.2445656,0.00010599,2]
[421420375,1777612194000,-500.0,0.00010638,2]
[421420376,1777612194000,-500.0,0.00010638,2]
[421420374,1777612194000,-500.0,0.00010638,2]
[421420373,1777612194000,-151.0,0.00010638,2]
[421420371,1777612194000,-151.0,0.00010638,2]
[421420372,1777612194000,-500.0,0.00010638,2]
[421420370,1777612194000,-500.0,0.00010638,2]
[421420369,1777612194000,-151.0,0.00010638,2]
[421420367,1777612194000,-151.0,0.00010638,2]
[421420365,1777612194000,-151.0,0.00010638,2]
[421420368,1777612194000,-500.0,0.00010638,2]
[421420364,1777612194000,-500.0,0.00010638,2]
[421420362,1777612194000,-440.6634,0.000106,2]
[421420361,1777612194000,-198.01578573,0.00010599,2]
[421420360,1777612194000,-500.0,0.00010599,2]
[421420358,1777612194000,-566.2445656,0.00010599,2]
[421420359,1777612194000,-566.24456558,0.00010599,2]
[421420355,1777612194000,-566.2445656,0.00010599,2]
[421420357,1777612194000,-566.2445656,0.00010599,2]
[421420356,1777612194000,-566.2445656,0.00010599,2]
[421420363,1777612194000,-200.0,0.00010638,2]
[421420351,1777612194000,-566.2445656,0.00010599,2]
[421420378,1777612195000,-500.0,0.00010638,2]
[421420377,1777612195000,-500.0,0.00010638,2]
[421420380,1777612195000,-4875.59733,0.00010662,2]
[421420383,1777612195000,-150.0,0.00010799,2]
[421420381,1777612195000,-1950.2471636,0.00010688,2]
[421420382,1777612195000,-18157.0532848,0.000107,2]
[421420379,1777612195000,-199.50004447,0.00010638,2]
[421420384,1777612197000,301.84341747,0.00010599,2]
[421420385,1777612199000,301.84341746,0.00010799,2]
[421420432,1777612232000,-150.0,0.00011371,2]
[421420434,1777612232000,-150.0,0.000114,2]
[421420433,1777612232000,-150.0,0.000114,2]
[421420436,1777612232000,-3860.20683207,0.00011433,2]
[421420439,1777612232000,-20046.03305435,0.000115,2]
[421420435,1777612232000,-150.0,0.00011429,2]
[421420441,1777612232000,-150.0,0.00011543,2]
[421420438,1777612232000,-150.0,0.00011486,2]
[421420440,1777612232000,-150.0,0.0001152,2]
[421420437,1777612232000,-321.78767031,0.00011433,2]
[421420446,1777612232000,-1755.03389402,0.0001159,2]
[421420442,1777612232000,-150.0,0.0001155,2]
[421420447,1777612232000,-250.0,0.0001159,2]
[421420448,1777612232000,-150.0,0.000116,2]
[421420445,1777612232000,-256.9084109,0.0001159,2]
[421420444,1777612232000,-321.78767031,0.00011589,2]
[421420450,1777612232000,-150.0,0.000117,2]
[421420449,1777612232000,-150.0,0.00011657,2]
[421420451,1777612232000,-150.0,0.000117,2]
[421420452,1777612232000,-150.0,0.00011714,2]
[421420443,1777612232000,-3860.20683207,0.00011589,2]
[421420427,1777612232000,-321.78767031,0.00011278,2]
[421420425,1777612232000,-1189.00957095,0.00011278,2]
[421420430,1777612232000,-996.41,0.000113,2]
[421420406,1777612232000,-321.78767031,0.00011099,2]
[421420403,1777612232000,-150.0,0.00011086,2]
[421420404,1777612232000,-1200.0,0.00011098,2]
[421420402,1777612232000,-150.0,0.0001104,2]
[421420400,1777612232000,-150.0,0.00010971,2]
[421420399,1777612232000,-500.0,0.00010959,2]
[421420396,1777612232000,-150.0,0.00010857,2]
[421420397,1777612232000,-150.0,0.00010914,2]
[421420398,1777612232000,-150.0,0.0001095,2]
[421420401,1777612232000,-150.0,0.00011029,2]
[421420393,1777612232000,-150.0,0.000108,2]
[421420395,1777612232000,-150.0,0.000108,2]
[421420394,1777612232000,-150.0,0.000108,2]
[421420392,1777612232000,-150.0,0.000108,2]
[421420391,1777612232000,-150.0,0.000108,2]
[421420407,1777612232000,-321.78767031,0.00011099,2]
[421420405,1777612232000,-321.78767039,0.00011099,2]
[421420428,1777612232000,-150.0,0.0001128,2]
[421420408,1777612232000,-119.411882,0.00011099,2]
[421420426,1777612232000,-2671.19726112,0.00011278,2]
[421420420,1777612232000,-150.0,0.000112,2]
[421420424,1777612232000,-150.0,0.00011257,2]
[421420422,1777612232000,-150.0,0.0001125,2]
[421420431,1777612232000,-150.0,0.00011314,2]
[421420418,1777612232000,-150.0,0.00011143,2]
[421420419,1777612232000,-200.0,0.00011186,2]
[421420410,1777612232000,-51.08964258,0.00011099,2]
[421420416,1777612232000,-3569.20275874,0.00011122,2]
[421420413,1777612232000,-150.0,0.000111,2]
[421420411,1777612232000,-851.12712388,0.00011099,2]
[421420414,1777612232000,-150.0,0.000111,2]
[421420415,1777612232000,-291.00407333,0.00011122,2]
[421420412,1777612232000,-2957.99006561,0.00011099,2]
[421420409,1777612232000,-202.37578831,0.00011099,2]
[421420417,1777612232000,-321.78767031,0.00011122,2]
[421420465,1777612233000,-321.78767031,0.000119,2]
[421420467,1777612233000,-198.36461733,0.000119,2]
[421420464,1777612233000,-155.43363069,0.000119,2]
[421420463,1777612233000,-3860.20683207,0.000119,2]
[421420462,1777612233000,-5000.0,0.000119,2]
[421420461,1777612233000,-150.0,0.00011886,2]
[421420460,1777612233000,-150.0,0.0001185,2]
[421420456,1777612233000,-150.0,0.0001176,2]
[421420457,1777612233000,-150.0,0.00011771,2]
[421420458,1777612233000,-271.18,0.00011779,2]
[421420454,1777612233000,-3860.20683207,0.00011744,2]
[421420455,1777612233000,-321.78767031,0.00011744,2]
[421420453,1777612233000,-200.0,0.00011734,2]
[421420469,1777612233000,-400.0,0.0001197,2]
[421420459,1777612233000,-150.0,0.00011829,2]
[421420468,1777612233000,-150.0,0.00011943,2]
[421420466,1777612233000,-3097.0115857,0.000119,2]
[421420486,1777612233000,-811.50471421,0.00012,2]
[421420470,1777612233000,-400.0,0.0001197,2]
[421420485,1777612233000,-7260.59259065,0.00012,2]
[421420484,1777612233000,-83361.58484512,0.00012,2]
[421420483,1777612233000,-12375.87889322,0.00012,2]
[421420482,1777612233000,-300.583,0.00011999,2]
[421420481,1777612233000,-300.0,0.00011999,2]
[421420479,1777612233000,-300.0,0.00011999,2]
[421420480,1777612233000,-300.0,0.00011999,2]
[421420478,1777612233000,-435.48481121,0.00011999,2]
[421420476,1777612233000,-734.58083778,0.0001199,2]
[421420477,1777612233000,-300.0,0.00011999,2]
[421420474,1777612233000,-734.58083778,0.0001199,2]
[421420473,1777612233000,-7536.0,0.00011973,2]
[421420472,1777612233000,-446.0,0.0001197,2]
[421420471,1777612233000,-500.0,0.0001197,2]
[421420475,1777612233000,-734.58083778,0.0001199,2]
[421420491,1777612238000,-535.41792625,0.00012,2]
[421420487,1777612238000,-6491.07,0.00012,2]